[Event "Titled Tuesday Blitz September 27 Early 2022"]
[White "Mikhailovsky, Vladimir"]
[Black "Martin Duque, Jesus"]
[WhiteFideId "34105414"]
[BlackFideId "2208954"]
[WhiteElo "2297"]
[BlackElo "2258"]
[Result "1-0"]
[Round "04"]
[TimeControl "180+1"]
[Date "2022.09.27"]
[WhiteClock "0:00:38"]
[BlackClock "0:00:56"]

1. e4 {[%clk 0:03:00]}  c5 {[%clk 0:02:59]} 2. Nf3 {[%clk 0:02:57]}  b6 {[%clk 0:02:59]} 3. c4 {[%clk 0:02:43]}  Bb7 {[%clk 0:02:58]} 4. Nc3 {[%clk 0:02:43]}  e6 {[%clk 0:02:58]} 5. g3 {[%clk 0:02:42]}  Nc6 {[%clk 0:02:57]} 6. Bg2 {[%clk 0:02:42]}  Nd4 {[%clk 0:02:56]} 7. O-O {[%clk 0:02:42]}  Ne7 {[%clk 0:02:49]} 8. Nxd4 {[%clk 0:02:25]}  cxd4 {[%clk 0:02:49]} 9. Ne2 {[%clk 0:02:26]}  Nc6 {[%clk 0:02:45]} 10. d3 {[%clk 0:02:22]}  Be7 {[%clk 0:02:44]} 11. f4 {[%clk 0:02:23]}  O-O {[%clk 0:02:43]} 12. g4 {[%clk 0:02:08]}  a6 {[%clk 0:02:39]} 13. g5 {[%clk 0:01:56]}  b5 {[%clk 0:02:37]} 14. b3 {[%clk 0:01:49]}  f6 {[%clk 0:02:32]} 15. h4 {[%clk 0:01:41]}  Kh8 {[%clk 0:02:30]} 16. Ng3 {[%clk 0:01:34]}  Qc7 {[%clk 0:02:24]} 17. Qg4 {[%clk 0:01:13]}  b4 {[%clk 0:02:12]} 18. g6 {[%clk 0:01:05]}  Bd6 {[%clk 0:01:36]} 19. Qh5 {[%clk 0:00:58]}  h6 {[%clk 0:01:35]} 20. f5 {[%clk 0:00:42]}  Kg8 {[%clk 0:01:19]} 21. Bxh6 {[%clk 0:00:40]}  Bxg3 {[%clk 0:00:59]} 22. Bf4 {[%clk 0:00:39]}  Bh2+ {[%clk 0:00:56]} 23. Bxh2 {[%clk 0:00:38]} 1-0


[Site "https://www.chess.com"]

[Event "Titled Tuesday Blitz September 27 Early 2022"]
[White "Miszler, Levente"]
[Black "Rama, Tejas"]
[WhiteFideId "763276"]
[BlackFideId "30907381"]
[WhiteElo "1966"]
[BlackElo "1513"]
[Result "1-0"]
[Round "04"]
[TimeControl "180+1"]
[Date "2022.09.27"]
[WhiteClock "0:00:04"]
[BlackClock "0:00:04"]

1. Nf3 {[%clk 0:03:00]}  Nf6 {[%clk 0:02:58]} 2. c4 {[%clk 0:03:00]}  e6 {[%clk 0:02:57]} 3. g3 {[%clk 0:03:00]}  d5 {[%clk 0:02:57]} 4. Bg2 {[%clk 0:03:00]}  c5 {[%clk 0:02:55]} 5. cxd5 {[%clk 0:02:59]}  Nxd5 {[%clk 0:02:53]} 6. O-O {[%clk 0:02:57]}  Nc6 {[%clk 0:02:49]} 7. d4 {[%clk 0:02:57]}  Nf6 {[%clk 0:02:32]} 8. e3 {[%clk 0:02:35]}  Be7 {[%clk 0:02:24]} 9. Nc3 {[%clk 0:02:32]}  O-O {[%clk 0:02:21]} 10. dxc5 {[%clk 0:02:31]}  Bxc5 {[%clk 0:02:16]} 11. b3 {[%clk 0:02:27]}  Qe7 {[%clk 0:02:02]} 12. Bb2 {[%clk 0:02:26]}  Rd8 {[%clk 0:01:38]} 13. Qe2 {[%clk 0:02:25]}  e5 {[%clk 0:01:36]} 14. Na4 {[%clk 0:02:13]}  Bd6 {[%clk 0:01:31]} 15. Rfd1 {[%clk 0:02:13]}  Bg4 {[%clk 0:01:26]} 16. h3 {[%clk 0:02:12]}  Be6 {[%clk 0:01:06]} 17. Ng5 {[%clk 0:02:07]}  Bf5 {[%clk 0:01:06]} 18. Rac1 {[%clk 0:01:37]}  h6 {[%clk 0:00:56]} 19. Nf3 {[%clk 0:01:37]}  Rac8 {[%clk 0:00:41]} 20. Nc3 {[%clk 0:01:36]}  e4 {[%clk 0:00:37]} 21. Nd4 {[%clk 0:01:35]}  Nxd4 {[%clk 0:00:37]} 22. Rxd4 {[%clk 0:01:35]}  Be5 {[%clk 0:00:37]} 23. Rxd8+ {[%clk 0:01:33]}  Rxd8 {[%clk 0:00:37]} 24. g4 {[%clk 0:01:24]}  Bg6 {[%clk 0:00:35]} 25. Rd1 {[%clk 0:01:19]}  Rd3 {[%clk 0:00:33]} 26. Qc2 {[%clk 0:00:56]}  Qc7 {[%clk 0:00:27]} 27. Rc1 {[%clk 0:00:50]}  Qd7 {[%clk 0:00:20]} 28. Nb1 {[%clk 0:00:35]}  Kh7 {[%clk 0:00:18]} 29. Bxe5 {[%clk 0:00:33]}  Nd5 {[%clk 0:00:17]} 30. a3 {[%clk 0:00:20]}  h5 {[%clk 0:00:16]} 31. g5 {[%clk 0:00:17]}  Qf5 {[%clk 0:00:12]} 32. Bd4 {[%clk 0:00:17]}  Qxg5 {[%clk 0:00:12]} 33. Nc3 {[%clk 0:00:15]}  Nxc3 {[%clk 0:00:08]} 34. Bxc3 {[%clk 0:00:15]}  Bf5 {[%clk 0:00:08]} 35. Kh2 {[%clk 0:00:14]}  Rd6 {[%clk 0:00:08]} 36. Be5 {[%clk 0:00:14]}  Rg6 {[%clk 0:00:08]} 37. Rg1 {[%clk 0:00:11]}  Bxh3 {[%clk 0:00:08]} 38. Bg3 {[%clk 0:00:11]}  Bxg2 {[%clk 0:00:08]} 39. Rxg2 {[%clk 0:00:10]}  h4 {[%clk 0:00:09]} 40. Qxe4 {[%clk 0:00:10]}  hxg3+ {[%clk 0:00:09]} 41. Rxg3 {[%clk 0:00:11]}  Qh5+ {[%clk 0:00:08]} 42. Kg2 {[%clk 0:00:11]}  f5 {[%clk 0:00:08]} 43. Qf4 {[%clk 0:00:10]}  Rxg3+ {[%clk 0:00:08]} 44. Qxg3 {[%clk 0:00:11]}  Qg6 {[%clk 0:00:07]} 45. Qxg6+ {[%clk 0:00:11]}  Kxg6 {[%clk 0:00:07]} 46. Kg3 {[%clk 0:00:11]}  Kf6 {[%clk 0:00:08]} 47. Kf4 {[%clk 0:00:11]}  g5+ {[%clk 0:00:09]} 48. Kf3 {[%clk 0:00:11]}  Ke5 {[%clk 0:00:09]} 49. Kg3 {[%clk 0:00:10]}  Ke4 {[%clk 0:00:09]} 50. Kg2 {[%clk 0:00:10]}  f4 {[%clk 0:00:05]} 51. exf4 {[%clk 0:00:06]}  gxf4 {[%clk 0:00:04]} 52. Kg1 {[%clk 0:00:04]}  Kd3 {[%clk 0:00:03]} 53. Kg2 {[%clk 0:00:04]}  Kc3 {[%clk 0:00:04]} 54. Kf3 {[%clk 0:00:04]}  Kxb3 {[%clk 0:00:04]} 55. Kxf4 {[%clk 0:00:05]}  b5 {[%clk 0:00:04]} 56. Ke3 {[%clk 0:00:05]}  a5 {[%clk 0:00:03]} 57. f4 {[%clk 0:00:05]}  Kxa3 {[%clk 0:00:03]} 58. f5 {[%clk 0:00:06]}  b4 {[%clk 0:00:04]} 59. f6 {[%clk 0:00:06]}  b3 {[%clk 0:00:05]} 60. f7 {[%clk 0:00:07]}  b2 {[%clk 0:00:05]} 61. f8=Q+ {[%clk 0:00:07]}  Ka2 {[%clk 0:00:06]} 62. Qf7+ {[%clk 0:00:05]}  Ka3 {[%clk 0:00:05]} 63. Qb7 {[%clk 0:00:05]}  Ka2 {[%clk 0:00:04]} 64. Qf7+ {[%clk 0:00:04]}  Ka1 {[%clk 0:00:04]} 65. Qf6 {[%clk 0:00:04]}  Ka2 {[%clk 0:00:04]} 66. Qe6+ {[%clk 0:00:04]}  Ka1 {[%clk 0:00:04]} 67. Qe5 {[%clk 0:00:05]}  a4 {[%clk 0:00:04]} 68. Kd2 {[%clk 0:00:04]}  a3 {[%clk 0:00:04]} 69. Kc2 {[%clk 0:00:04]}  Ka2 {[%clk 0:00:04]} 70. Qd5+ {[%clk 0:00:04]}  Ka1 {[%clk 0:00:04]} 71. Qd4 {[%clk 0:00:04]}  Ka2 {[%clk 0:00:04]} 72. Qc4+ {[%clk 0:00:03]}  Ka1 {[%clk 0:00:04]} 73. Qf1+ {[%clk 0:00:03]}  b1=Q+ {[%clk 0:00:04]} 74. Qxb1# {[%clk 0:00:04]} 1-0


[Site "https://www.chess.com"]

[Event "Titled Tuesday Blitz September 27 Early 2022"]
[White "Moksh Amit Doshi"]
[Black "Ljukin, Sergei"]
[WhiteFideId "25064967"]
[BlackFideId "14102200"]
[WhiteElo "2245"]
[BlackElo "2312"]
[Result "1-0"]
[Round "04"]
[TimeControl "180+1"]
[Date "2022.09.27"]
[WhiteClock "0:00:14"]
[BlackClock "0:00:02"]

1. d4 {[%clk 0:03:00]}  d5 {[%clk 0:02:53]} 2. Nf3 {[%clk 0:03:01]}  Nf6 {[%clk 0:02:52]} 3. c4 {[%clk 0:02:58]}  c6 {[%clk 0:02:52]} 4. Nc3 {[%clk 0:02:58]}  dxc4 {[%clk 0:02:53]} 5. a4 {[%clk 0:02:57]}  Bf5 {[%clk 0:02:52]} 6. Ne5 {[%clk 0:02:57]}  Na6 {[%clk 0:02:52]} 7. f3 {[%clk 0:02:44]}  Nd7 {[%clk 0:02:50]} 8. Nxc4 {[%clk 0:02:39]}  e5 {[%clk 0:02:50]} 9. e4 {[%clk 0:02:35]}  exd4 {[%clk 0:02:50]} 10. Qxd4 {[%clk 0:02:32]}  Nb4 {[%clk 0:02:50]} 11. Ne3 {[%clk 0:02:19]}  Be6 {[%clk 0:02:39]} 12. Bc4 {[%clk 0:02:19]}  Bxc4 {[%clk 0:02:22]} 13. Qxc4 {[%clk 0:02:20]}  Ne5 {[%clk 0:02:12]} 14. Qb3 {[%clk 0:02:07]}  Nbd3+ {[%clk 0:01:13]} 15. Ke2 {[%clk 0:01:57]}  Nf4+ {[%clk 0:01:12]} 16. Kf2 {[%clk 0:01:52]}  Ned3+ {[%clk 0:01:12]} 17. Kf1 {[%clk 0:01:51]}  Qh4 {[%clk 0:01:08]} 18. Qc2 {[%clk 0:01:49]}  Bc5 {[%clk 0:00:57]} 19. g3 {[%clk 0:01:32]}  Qh3+ {[%clk 0:00:56]} 20. Ng2 {[%clk 0:01:32]}  Nf2 {[%clk 0:00:46]} 21. Bxf4 {[%clk 0:01:27]}  Nxh1 {[%clk 0:00:41]} 22. Nd5 {[%clk 0:01:25]}  cxd5 {[%clk 0:00:29]} 23. Qxc5 {[%clk 0:01:23]}  Qxh2 {[%clk 0:00:17]} 24. Qb5+ {[%clk 0:01:10]}  Kf8 {[%clk 0:00:16]} 25. exd5 {[%clk 0:00:57]}  Nxg3+ {[%clk 0:00:10]} 26. Kf2 {[%clk 0:00:57]}  Nh1+ {[%clk 0:00:10]} 27. Kf1 {[%clk 0:00:47]}  Qh3 {[%clk 0:00:06]} 28. Re1 {[%clk 0:00:42]}  h6 {[%clk 0:00:04]} 29. Qxb7 {[%clk 0:00:40]}  Rc8 {[%clk 0:00:02]} 30. d6 {[%clk 0:00:26]}  Kg8 {[%clk 0:00:02]} 31. d7 {[%clk 0:00:26]}  Rd8 {[%clk 0:00:02]} 32. Re8+ {[%clk 0:00:13]}  Kh7 {[%clk 0:00:03]} 33. Qe4+ {[%clk 0:00:14]}  g6 {[%clk 0:00:02]} 34. Rxh8+ {[%clk 0:00:14]} 1-0


[Site "https://www.chess.com"]

[Event "Titled Tuesday Blitz September 27 Early 2022"]
[White "Molina, Roberto Junio Brito"]
[Black "Narayanan.S.L"]
[WhiteFideId "2109450"]
[BlackFideId "5058422"]
[WhiteElo "2403"]
[BlackElo "2504"]
[Result "0-1"]
[Round "04"]
[TimeControl "180+1"]
[Date "2022.09.27"]
[WhiteClock "0:00:03"]
[BlackClock "0:02:02"]

1. d4 {[%clk 0:03:00]}  Nf6 {[%clk 0:02:59]} 2. e3 {[%clk 0:03:01]}  g6 {[%clk 0:02:59]} 3. Nf3 {[%clk 0:03:02]}  Bg7 {[%clk 0:02:59]} 4. Be2 {[%clk 0:03:02]}  O-O {[%clk 0:03:00]} 5. O-O {[%clk 0:03:03]}  d6 {[%clk 0:03:00]} 6. c4 {[%clk 0:03:03]}  Nbd7 {[%clk 0:02:59]} 7. b3 {[%clk 0:03:04]}  e5 {[%clk 0:02:59]} 8. Bb2 {[%clk 0:03:04]}  e4 {[%clk 0:02:59]} 9. Nfd2 {[%clk 0:03:04]}  Re8 {[%clk 0:03:00]} 10. Nc3 {[%clk 0:03:05]}  Nf8 {[%clk 0:03:00]} 11. Qc2 {[%clk 0:03:05]}  Bf5 {[%clk 0:03:00]} 12. Rae1 {[%clk 0:03:04]}  Ne6 {[%clk 0:03:00]} 13. Qb1 {[%clk 0:02:51]}  Nxd4 {[%clk 0:02:56]} 14. exd4 {[%clk 0:02:52]}  e3 {[%clk 0:02:57]} 15. Qd1 {[%clk 0:02:47]}  exd2 {[%clk 0:02:56]} 16. Qxd2 {[%clk 0:02:48]}  Ne4 {[%clk 0:02:56]} 17. Nxe4 {[%clk 0:02:47]}  Bxe4 {[%clk 0:02:57]} 18. d5 {[%clk 0:02:33]}  Bxb2 {[%clk 0:02:51]} 19. Qxb2 {[%clk 0:02:34]}  Qg5 {[%clk 0:02:51]} 20. g3 {[%clk 0:02:28]}  Bf5 {[%clk 0:02:50]} 21. Bf3 {[%clk 0:02:22]}  h5 {[%clk 0:02:49]} 22. h4 {[%clk 0:02:21]}  Qh6 {[%clk 0:02:48]} 23. Qf6 {[%clk 0:02:12]}  Qd2 {[%clk 0:02:38]} 24. Qa1 {[%clk 0:02:01]}  a5 {[%clk 0:02:35]} 25. Rd1 {[%clk 0:01:59]}  Qh6 {[%clk 0:02:33]} 26. Rfe1 {[%clk 0:01:57]}  Qg7 {[%clk 0:02:32]} 27. Qc1 {[%clk 0:01:49]}  a4 {[%clk 0:02:31]} 28. b4 {[%clk 0:01:49]}  Rxe1+ {[%clk 0:02:29]} 29. Rxe1 {[%clk 0:01:49]}  a3 {[%clk 0:02:30]} 30. Re2 {[%clk 0:01:42]}  Qd4 {[%clk 0:02:29]} 31. Rd2 {[%clk 0:01:39]}  Qe5 {[%clk 0:02:27]} 32. Re2 {[%clk 0:01:38]}  Qd4 {[%clk 0:02:27]} 33. Rd2 {[%clk 0:01:38]}  Qf6 {[%clk 0:02:28]} 34. Bg2 {[%clk 0:01:33]}  b6 {[%clk 0:02:25]} 35. c5 {[%clk 0:01:31]}  bxc5 {[%clk 0:02:24]} 36. bxc5 {[%clk 0:01:32]}  Qe5 {[%clk 0:02:16]} 37. cxd6 {[%clk 0:01:30]}  cxd6 {[%clk 0:02:16]} 38. Bf3 {[%clk 0:01:26]}  Rb8 {[%clk 0:02:15]} 39. Re2 {[%clk 0:00:55]}  Qd4 {[%clk 0:02:14]} 40. Qxa3 {[%clk 0:00:53]}  Rb1+ {[%clk 0:02:14]} 41. Kg2 {[%clk 0:00:51]}  Kg7 {[%clk 0:02:06]} 42. Qxd6 {[%clk 0:00:42]}  Qd1 {[%clk 0:02:04]} 43. Qe5+ {[%clk 0:00:40]}  Kh7 {[%clk 0:02:05]} 44. Qh8+ {[%clk 0:00:05]}  Kxh8 {[%clk 0:02:04]} 45. Re8+ {[%clk 0:00:04]}  Kg7 {[%clk 0:02:04]} 46. Bxd1 {[%clk 0:00:04]}  Rxd1 {[%clk 0:02:05]} 47. Re5 {[%clk 0:00:04]}  Rd2 {[%clk 0:02:02]} 48. a4 {[%clk 0:00:04]}  Ra2 {[%clk 0:02:03]} 49. d6 {[%clk 0:00:03]}  Rxa4 {[%clk 0:02:02]} 0-1


[Site "https://www.chess.com"]

[Event "Titled Tuesday Blitz September 27 Early 2022"]
[White "Niekras, Dawid"]
[Black "Raja Rithvik R"]
[WhiteFideId "1160451"]
[BlackFideId "35007394"]
[WhiteElo "2296"]
[BlackElo "2255"]
[Result "1/2-1/2"]
[Round "04"]
[TimeControl "180+1"]
[Date "2022.09.27"]
[WhiteClock "0:00:05"]
[BlackClock "0:00:09"]

1. e4 {[%clk 0:03:00]}  c5 {[%clk 0:02:59]} 2. Nf3 {[%clk 0:03:01]}  d6 {[%clk 0:02:58]} 3. Nc3 {[%clk 0:03:01]}  Nf6 {[%clk 0:02:58]} 4. e5 {[%clk 0:03:01]}  dxe5 {[%clk 0:02:58]} 5. Nxe5 {[%clk 0:03:02]}  e6 {[%clk 0:02:56]} 6. Bb5+ {[%clk 0:03:02]}  Nbd7 {[%clk 0:02:56]} 7. d4 {[%clk 0:03:02]}  a6 {[%clk 0:02:51]} 8. Bxd7+ {[%clk 0:03:01]}  Bxd7 {[%clk 0:02:50]} 9. Bg5 {[%clk 0:03:01]}  Be7 {[%clk 0:02:18]} 10. O-O {[%clk 0:02:47]}  Qc7 {[%clk 0:01:47]} 11. Nxd7 {[%clk 0:02:23]}  Qxd7 {[%clk 0:01:42]} 12. dxc5 {[%clk 0:02:23]}  Bxc5 {[%clk 0:01:30]} 13. Bxf6 {[%clk 0:02:22]}  Qxd1 {[%clk 0:01:14]} 14. Raxd1 {[%clk 0:02:20]}  gxf6 {[%clk 0:01:14]} 15. Ne4 {[%clk 0:02:16]}  Be7 {[%clk 0:01:14]} 16. Nd6+ {[%clk 0:02:17]}  Bxd6 {[%clk 0:01:14]} 17. Rxd6 {[%clk 0:02:18]}  Rc8 {[%clk 0:01:04]} 18. Rfd1 {[%clk 0:02:13]}  O-O {[%clk 0:01:03]} 19. c3 {[%clk 0:02:07]}  Rc5 {[%clk 0:00:56]} 20. Rb6 {[%clk 0:02:02]}  Rc7 {[%clk 0:00:55]} 21. f4 {[%clk 0:01:51]}  Re8 {[%clk 0:00:49]} 22. Kf2 {[%clk 0:01:50]}  f5 {[%clk 0:00:48]} 23. Rdd6 {[%clk 0:01:40]}  Kg7 {[%clk 0:00:27]} 24. Ke3 {[%clk 0:01:38]}  Kf6 {[%clk 0:00:25]} 25. Kd4 {[%clk 0:01:24]}  Ke7 {[%clk 0:00:25]} 26. c4 {[%clk 0:01:18]}  Rg8 {[%clk 0:00:25]} 27. g3 {[%clk 0:01:18]}  h5 {[%clk 0:00:26]} 28. Kc3 {[%clk 0:01:06]}  h4 {[%clk 0:00:23]} 29. Rd3 {[%clk 0:01:06]}  hxg3 {[%clk 0:00:21]} 30. hxg3 {[%clk 0:01:07]}  Rgc8 {[%clk 0:00:20]} 31. b3 {[%clk 0:01:07]}  Rh8 {[%clk 0:00:15]} 32. Kb4 {[%clk 0:01:02]}  Rh2 {[%clk 0:00:16]} 33. a4 {[%clk 0:01:02]}  Re2 {[%clk 0:00:15]} 34. a5 {[%clk 0:00:58]}  f6 {[%clk 0:00:15]} 35. Rd1 {[%clk 0:00:27]}  Rh2 {[%clk 0:00:12]} 36. Rdd6 {[%clk 0:00:26]}  Re2 {[%clk 0:00:12]} 37. Rd1 {[%clk 0:00:26]}  Re3 {[%clk 0:00:06]} 38. Rh1 {[%clk 0:00:26]}  Kd7 {[%clk 0:00:03]} 39. Rh7+ {[%clk 0:00:20]}  Kc8 {[%clk 0:00:04]} 40. Rh8+ {[%clk 0:00:20]}  Kd7 {[%clk 0:00:04]} 41. Rb8 {[%clk 0:00:14]}  Rxg3 {[%clk 0:00:04]} 42. R8xb7 {[%clk 0:00:14]}  Rxb7 {[%clk 0:00:03]} 43. Rxb7+ {[%clk 0:00:15]}  Kc8 {[%clk 0:00:03]} 44. Rb6 {[%clk 0:00:14]}  e5 {[%clk 0:00:04]} 45. Rxf6 {[%clk 0:00:13]}  exf4 {[%clk 0:00:05]} 46. Rxf5 {[%clk 0:00:13]}  f3 {[%clk 0:00:05]} 47. Rf7 {[%clk 0:00:11]}  Kb8 {[%clk 0:00:05]} 48. Ka4 {[%clk 0:00:06]}  Rh3 {[%clk 0:00:05]} 49. b4 {[%clk 0:00:05]}  Rh4 {[%clk 0:00:06]} 50. Kb3 {[%clk 0:00:04]}  Rh3 {[%clk 0:00:06]} 51. Ka4 {[%clk 0:00:02]}  Rh4 {[%clk 0:00:07]} 52. c5 {[%clk 0:00:03]}  Rh3 {[%clk 0:00:07]} 53. c6 {[%clk 0:00:02]}  Rh6 {[%clk 0:00:06]} 54. Rxf3 {[%clk 0:00:02]}  Rxc6 {[%clk 0:00:06]} 55. Rf8+ {[%clk 0:00:02]}  Kb7 {[%clk 0:00:07]} 56. Rf7+ {[%clk 0:00:03]}  Rc7 {[%clk 0:00:07]} 57. Rxc7+ {[%clk 0:00:02]}  Kxc7 {[%clk 0:00:08]} 58. Kb3 {[%clk 0:00:03]}  Kd7 {[%clk 0:00:08]} 59. Kc3 {[%clk 0:00:03]}  Kc6 {[%clk 0:00:08]} 60. Kc4 {[%clk 0:00:03]}  Kd6 {[%clk 0:00:09]} 61. Kd4 {[%clk 0:00:03]}  Kc6 {[%clk 0:00:09]} 62. Kc4 {[%clk 0:00:03]}  Kd6 {[%clk 0:00:10]} 63. Kb3 {[%clk 0:00:03]}  Kc6 {[%clk 0:00:09]} 64. Kc3 {[%clk 0:00:03]}  Kb5 {[%clk 0:00:09]} 65. Kb3 {[%clk 0:00:04]}  Kc6 {[%clk 0:00:09]} 66. Kc4 {[%clk 0:00:05]} 1/2-1/2


[Site "https://www.chess.com"]

[Event "Titled Tuesday Blitz September 27 Early 2022"]
[White "Odegov, Artem"]
[Black "Madaminov, Mukhiddin"]
[WhiteFideId "34183644"]
[BlackFideId "14210703"]
[WhiteElo "2286"]
[BlackElo "2106"]
[Result "1-0"]
[Round "04"]
[TimeControl "180+1"]
[Date "2022.09.27"]
[WhiteClock "0:00:07"]
[BlackClock "0:00:01"]

1. d4 {[%clk 0:03:00]}  Nf6 {[%clk 0:03:00]} 2. c4 {[%clk 0:03:01]}  e6 {[%clk 0:03:00]} 3. Nf3 {[%clk 0:03:01]}  b6 {[%clk 0:03:00]} 4. g3 {[%clk 0:03:01]}  Ba6 {[%clk 0:03:00]} 5. b3 {[%clk 0:03:01]}  Bb4+ {[%clk 0:03:01]} 6. Bd2 {[%clk 0:03:01]}  Be7 {[%clk 0:02:59]} 7. Bg2 {[%clk 0:03:02]}  c6 {[%clk 0:02:59]} 8. O-O {[%clk 0:03:02]}  d5 {[%clk 0:03:00]} 9. Ne5 {[%clk 0:03:02]}  O-O {[%clk 0:03:00]} 10. Bc3 {[%clk 0:03:02]}  Bb7 {[%clk 0:03:00]} 11. Nd2 {[%clk 0:03:01]}  Nbd7 {[%clk 0:03:01]} 12. e4 {[%clk 0:02:58]}  Rc8 {[%clk 0:02:47]} 13. Qe2 {[%clk 0:02:54]}  Qc7 {[%clk 0:02:38]} 14. Nxd7 {[%clk 0:02:45]}  Nxd7 {[%clk 0:02:33]} 15. Rac1 {[%clk 0:02:44]}  dxc4 {[%clk 0:02:29]} 16. bxc4 {[%clk 0:02:37]}  e5 {[%clk 0:02:27]} 17. d5 {[%clk 0:02:24]}  Nc5 {[%clk 0:02:25]} 18. Nb3 {[%clk 0:02:22]}  Ba6 {[%clk 0:02:16]} 19. Nxc5 {[%clk 0:02:16]}  Bxc5 {[%clk 0:02:17]} 20. Rfd1 {[%clk 0:02:13]}  cxd5 {[%clk 0:02:14]} 21. exd5 {[%clk 0:02:10]}  Bd6 {[%clk 0:02:14]} 22. Bh3 {[%clk 0:01:43]}  Qxc4 {[%clk 0:01:40]} 23. Qe3 {[%clk 0:01:35]}  Rce8 {[%clk 0:01:26]} 24. Bd7 {[%clk 0:01:06]}  Re7 {[%clk 0:01:17]} 25. Bc6 {[%clk 0:00:36]}  Qxa2 {[%clk 0:00:58]} 26. Ra1 {[%clk 0:00:28]}  Qe2 {[%clk 0:00:57]} 27. Qxe2 {[%clk 0:00:11]}  Bxe2 {[%clk 0:00:58]} 28. Re1 {[%clk 0:00:12]}  Bd3 {[%clk 0:00:55]} 29. Re3 {[%clk 0:00:05]}  e4 {[%clk 0:00:54]} 30. Bd4 {[%clk 0:00:05]}  Rd8 {[%clk 0:00:44]} 31. h4 {[%clk 0:00:05]}  f5 {[%clk 0:00:43]} 32. h5 {[%clk 0:00:04]}  Kf7 {[%clk 0:00:42]} 33. h6 {[%clk 0:00:05]}  g5 {[%clk 0:00:40]} 34. Ree1 {[%clk 0:00:05]}  f4 {[%clk 0:00:38]} 35. Ra4 {[%clk 0:00:04]}  fxg3 {[%clk 0:00:36]} 36. fxg3 {[%clk 0:00:05]}  Bxg3 {[%clk 0:00:36]} 37. Rea1 {[%clk 0:00:05]}  Bb8 {[%clk 0:00:35]} 38. Be3 {[%clk 0:00:04]}  Kg6 {[%clk 0:00:34]} 39. R4a2 {[%clk 0:00:04]}  Bc4 {[%clk 0:00:32]} 40. Rf2 {[%clk 0:00:04]}  Bxd5 {[%clk 0:00:31]} 41. Rd1 {[%clk 0:00:05]}  Bxc6 {[%clk 0:00:23]} 42. Rxd8 {[%clk 0:00:06]}  Bg3 {[%clk 0:00:22]} 43. Rg8+ {[%clk 0:00:06]}  Kxh6 {[%clk 0:00:19]} 44. Bxg5+ {[%clk 0:00:05]}  Kh5 {[%clk 0:00:19]} 45. Bxe7 {[%clk 0:00:05]}  Bxf2+ {[%clk 0:00:07]} 46. Kxf2 {[%clk 0:00:06]}  a5 {[%clk 0:00:07]} 47. Ke3 {[%clk 0:00:06]}  a4 {[%clk 0:00:08]} 48. Rb8 {[%clk 0:00:06]}  b5 {[%clk 0:00:08]} 49. Rb6 {[%clk 0:00:06]}  Be8 {[%clk 0:00:08]} 50. Re6 {[%clk 0:00:06]}  Kg4 {[%clk 0:00:08]} 51. Bb4 {[%clk 0:00:05]}  Bf7 {[%clk 0:00:06]} 52. Re5 {[%clk 0:00:06]}  Bc4 {[%clk 0:00:06]} 53. Rxe4+ {[%clk 0:00:06]}  Kg5 {[%clk 0:00:06]} 54. Re7 {[%clk 0:00:06]}  h5 {[%clk 0:00:07]} 55. Kf2 {[%clk 0:00:07]}  Kg4 {[%clk 0:00:07]} 56. Kg2 {[%clk 0:00:07]}  h4 {[%clk 0:00:06]} 57. Re4+ {[%clk 0:00:07]}  Kg5 {[%clk 0:00:05]} 58. Rd4 {[%clk 0:00:08]}  Be2 {[%clk 0:00:03]} 59. Kf2 {[%clk 0:00:08]}  Bc4 {[%clk 0:00:04]} 60. Be7+ {[%clk 0:00:09]}  Kf5 {[%clk 0:00:04]} 61. Rxh4 {[%clk 0:00:09]}  Ke6 {[%clk 0:00:04]} 62. Bb4 {[%clk 0:00:08]}  Kd5 {[%clk 0:00:05]} 63. Ke3 {[%clk 0:00:09]}  Ke5 {[%clk 0:00:06]} 64. Kd2 {[%clk 0:00:09]}  Kd5 {[%clk 0:00:06]} 65. Kc3 {[%clk 0:00:10]}  Ke5 {[%clk 0:00:07]} 66. Rh5+ {[%clk 0:00:10]}  Kf4 {[%clk 0:00:07]} 67. Kd4 {[%clk 0:00:10]}  Kf3 {[%clk 0:00:08]} 68. Rf5+ {[%clk 0:00:09]}  Kg4 {[%clk 0:00:08]} 69. Rf8 {[%clk 0:00:09]}  Kg3 {[%clk 0:00:07]} 70. Ke3 {[%clk 0:00:09]}  Kg4 {[%clk 0:00:08]} 71. Rf4+ {[%clk 0:00:09]}  Kg5 {[%clk 0:00:08]} 72. Be7+ {[%clk 0:00:09]}  Kg6 {[%clk 0:00:08]} 73. Ke4 {[%clk 0:00:09]}  Kg7 {[%clk 0:00:06]} 74. Ke5 {[%clk 0:00:09]}  Kg6 {[%clk 0:00:06]} 75. Rg4+ {[%clk 0:00:09]}  Kf7 {[%clk 0:00:06]} 76. Bb4 {[%clk 0:00:09]}  Bb3 {[%clk 0:00:05]} 77. Rg3 {[%clk 0:00:05]}  Bc4 {[%clk 0:00:05]} 78. Bc3 {[%clk 0:00:05]}  a3 {[%clk 0:00:04]} 79. Bb4 {[%clk 0:00:06]}  a2 {[%clk 0:00:04]} 80. Ra3 {[%clk 0:00:06]}  Kg6 {[%clk 0:00:05]} 81. Rg3+ {[%clk 0:00:05]}  Kf7 {[%clk 0:00:05]} 82. Bc3 {[%clk 0:00:06]}  Ke7 {[%clk 0:00:03]} 83. Bb2 {[%clk 0:00:06]}  Kf7 {[%clk 0:00:03]} 84. Kd6 {[%clk 0:00:06]}  Be6 {[%clk 0:00:01]} 85. Rg7+ {[%clk 0:00:06]}  Kf8 {[%clk 0:00:01]} 86. Kxe6 {[%clk 0:00:07]} 1-0


[Site "https://www.chess.com"]

[Event "Titled Tuesday Blitz September 27 Early 2022"]
[White "Ozates, Tuna"]
[Black "Dardha, Daniel"]
[WhiteFideId "6354521"]
[BlackFideId "240990"]
[WhiteElo "1887"]
[BlackElo "2528"]
[Result "0-1"]
[Round "04"]
[TimeControl "180+1"]
[Date "2022.09.27"]
[WhiteClock "0:01:40"]
[BlackClock "0:01:46"]

1. e4 {[%clk 0:03:00]}  e5 {[%clk 0:02:55]} 2. Nf3 {[%clk 0:02:59]}  Nc6 {[%clk 0:02:55]} 3. Bc4 {[%clk 0:03:00]}  Bc5 {[%clk 0:02:55]} 4. c3 {[%clk 0:03:00]}  Qf6 {[%clk 0:02:56]} 5. d3 {[%clk 0:02:57]}  Nge7 {[%clk 0:02:53]} 6. Bg5 {[%clk 0:02:40]}  Qg6 {[%clk 0:02:52]} 7. h4 {[%clk 0:02:40]}  h6 {[%clk 0:02:42]} 8. h5 {[%clk 0:02:39]}  Qh7 {[%clk 0:02:23]} 9. Bh4 {[%clk 0:02:38]}  d6 {[%clk 0:02:21]} 10. b4 {[%clk 0:02:34]}  Bb6 {[%clk 0:02:21]} 11. a4 {[%clk 0:02:32]}  a5 {[%clk 0:02:18]} 12. b5 {[%clk 0:02:31]}  Nb8 {[%clk 0:02:16]} 13. Bxe7 {[%clk 0:02:29]}  Kxe7 {[%clk 0:02:16]} 14. Nh4 {[%clk 0:02:20]}  g5 {[%clk 0:02:09]} 15. hxg6 {[%clk 0:02:17]}  fxg6 {[%clk 0:02:10]} 16. Qf3 {[%clk 0:02:10]}  Rf8 {[%clk 0:02:05]} 17. Qg3 {[%clk 0:01:53]}  Bxf2+ {[%clk 0:02:03]} 18. Qxf2 {[%clk 0:01:54]}  Rxf2 {[%clk 0:02:04]} 19. Kxf2 {[%clk 0:01:54]}  Nd7 {[%clk 0:02:01]} 20. Nd2 {[%clk 0:01:54]}  Nf6 {[%clk 0:02:00]} 21. Raf1 {[%clk 0:01:52]}  g5 {[%clk 0:01:57]} 22. Nhf3 {[%clk 0:01:48]}  Qg7 {[%clk 0:01:55]} 23. Ke2 {[%clk 0:01:42]}  Bg4 {[%clk 0:01:55]} 24. Rf2 {[%clk 0:01:41]}  Rf8 {[%clk 0:01:50]} 25. Nf1 {[%clk 0:01:41]}  Nh5 {[%clk 0:01:47]} 26. Ne3 {[%clk 0:01:40]}  Ng3+ {[%clk 0:01:46]} 0-1


[Site "https://www.chess.com"]